[Event "Serbian-ch Semifinal 2024"]
[Site "Paracin"]
[Date "2024.02.06"]
[Round "3.2"]
[White "Radovanovic, Nikola"]
[Black "Pap, Misa"]
[Result "1-0"]
[ECO "B38"]
[WhiteElo "2446"]
[BlackElo "2422"]
[Annotator "TA"]
[PlyCount "65"]
[EventDate "2024.02.04"]
[EventType "swiss"]
[EventCountry "SRB"]
[SourceTitle "playchess.com"]
[Source "ChessBase"]
[SourceQuality "1"]
[TimeControl "40/5400+30:1800+30"]

{[%evp 16,65,50,31,58,50,85,80,79,96,113,115,125,71,68,62,97,64,99,98,117,98,159,170,170,184,351,217,389,360,541,529,531,509,550,561,1115,397,536,531,690,670,2638,2522,3689,3182,1056,626,29994,29995,29995,29996]} 1. e4 {[%emt 0:04:52]} c5 {[%emt 0:01:53]} 2. Nf3 {[%emt 0:00:24]} Nc6 {[%emt 0:00:19]} 3. d4 {[%emt 0:00:18]} cxd4 {[%emt 0:00:06]} 4. Nxd4 {[%emt 0:00:05]} g6 {[%emt 0:03:22]} 5. c4 {[%emt 0:00:28]} Bg7 {[%emt 0:00:05]} 6. Be3 {[%emt 0:00:19]} Nf6 {[%emt 0:00:05][%cal Bg8f6,Bf6d7,Bd7c5,Bc5b3][%mdl 32]} 7. Nc3 {[%emt 0:00:21]} d6 {[%emt 0:00:37]} 8. Be2 {[%emt 0:02:19]} O-O {[%emt 0:00:06]} 9. f3 {[%emt 0:00:51]} Nxd4 {[%emt 0:08:44]} 10. Bxd4 {[%emt 0:00:13]} Nd7 {[%emt 0:00:51]} 11. Bxg7 {[%emt 0:07:11]} Kxg7 {[%emt 0:00:06] White is better.} 12. Qd2 {[%emt 0:00:09]} a5 {[%emt 0:05:36][%cal Ba7a5,Ba5a4][%mdl 32]} 13. O-O-O {[%emt 0:04:55]} a4 {[%emt 0:10:32]} 14. a3 {[%emt 0:01:05] White is more active.} ({White should play} 14. h4) 14... Nc5 $16 {[%emt 0:02:59] White must now prevent ...Nb3+.} 15. Kb1 {[%emt 0:00:29]} Be6 {[%emt 0:10:26] Black is on the road to losing.} 16. h4 {[%emt 0:02:57][%cal Bh2h4,Bh4h5,Bh5h6][%mdl 32]} Qa5 {[%emt 0:04:33]} 17. Qe3 {[%emt 0:04:37]} Nb3 {[%emt 0:04:38]} 18. Nb5 {[%emt 0:01:03] And now h5 would win.} (18. Nd5 {keeps more tension.} Rae8 19. h5 Qc5 20. Qc3+) 18... f6 {[%emt 0:07:27]} (18... Rfc8 $2 19. h5 Rh8 20. e5 $18) ({Better is} 18... h6) 19. f4 $1 {[%emt 0:10:33]} Rac8 {[%emt 0:10:26] [#]} 20. h5 $1 {[%emt 0:05:04]} g5 {[%emt 0:04:30]} (20... Bxc4 $2 {perishes.} 21. hxg6 hxg6 (21... Bxb5 22. Rxh7+ Kg8 23. Qh3) 22. Bxc4 $18) (20... Bf7 21. hxg6 hxg6) 21. fxg5 {[%emt 0:03:34] Strongly threatening Rhf1.} Rc5 $2 {[%emt 0:00:01]} (21... h6 22. gxf6+ (22. gxh6+ Kh8 $14) 22... Rxf6) 22. h6+ $18 {[%emt 0:17:10]} Kh8 {[%emt 0:01:59]} (22... Kg8 {keeps fighting.} 23. gxf6 Rxf6) 23. gxf6 {[%emt 0:01:06]} Rxf6 {[%emt 0:00:01]} 24. Rhf1 {[%emt 0:00:28]} Rxf1 {[%emt 0:01:05]} 25. Bxf1 {[%emt 0:00:10] Threatening mate with Qg3.} Qa8 {[%emt 0:03:53] [#]} 26. Nc7 {[%emt 0:04:48] Prevents Qe8.} Qg8 {[%emt 0:00:14]} ({Inferior is} 26... Rxc7 27. Qc3+) 27. Nd5 {[%emt 0:00:15]} Bxd5 {[%emt 0:06:04]} 28. exd5 {[%emt 0:01:17] Qc3+ would kill now.} Qf7 {[%emt 0:03:55]} 29. Bd3 {[%emt 0:01:46] White threatens Rf1 and mate.} Rc8 {[%emt 0:00:16]} 30. Rf1 {[%emt 0:00:51]} Qh5 {[%emt 0:00:05]} 31. g4 {[%emt 0:07:05]} Qxg4 {[%emt 0:05:03]} 32. Qxe7 {[%emt 0:00:39][%csl Gd3][%cal Re7h7]} Nd2+ {[%emt 0:00:38]} 33. Ka2 {[%emt 0:00:25] Weighted Error Value: White=0.60/Black=1.06.  Mistake:       	White=2     	Black=4      Inaccurate:     	White=1     	Black=6      OK:         	White=6     	Black=2      Best:        	White=2     	Black=1      Strong:       	White=2     	---} 1-0

[Event "Serbian-ch Semifinal 2024"]
[Site "Paracin"]
[Date "2024.02.06"]
[Round "3.3"]
[White "Tilicheev, Viacheslav"]
[Black "Perunovic, Miodrag"]
[Result "1-0"]
[ECO "E71"]
[WhiteElo "2487"]
[BlackElo "2373"]
[Annotator "TA"]
[PlyCount "57"]
[EventDate "2024.02.04"]
[EventType "swiss"]
[EventCountry "SRB"]
[SourceTitle "playchess.com"]
[Source "ChessBase"]
[SourceQuality "1"]
[TimeControl "40/5400+30:1800+30"]

{[%evp 13,57,37,41,28,46,39,52,39,27,37,41,46,47,44,46,45,52,79,62,70,73,66,75,69,95,28,37,37,87,105,150,135,123,120,263,234,881,857,827,810,29983,29984,29984,29985,29985,29986]} 1. d4 {[%emt 0:00:05]} Nf6 {[%emt 0:06:25]} 2. c4 {[%emt 0:00:17]} g6 {[%emt 0:00:08]} 3. Nc3 {[%emt 0:00:13]} Bg7 {[%emt 0:00:03]} 4. e4 {[%emt 0:00:09]} d6 {[%emt 0:00:03]} 5. h3 {[%emt 0:00:13]} O-O {[%emt 0:00:05]} 6. Be3 {[%emt 0:00:19]} e5 {[%emt 0:00:06]} 7. d5 {[%emt 0:00:23]} Na6 {[%emt 0:00:02]} 8. g4 {[%emt 0:00:26]} Nc5 {[%emt 0:00:08]} 9. f3 {[%emt 0:00:10]} a5 {[%emt 0:01:09]} 10. Qd2 {[%emt 0:00:20] White is slightly better.} c6 $1 {[%emt 0:01:57]} 11. Nge2 {[%emt 0:00:20]} cxd5 {[%emt 0:00:08]} 12. cxd5 {[%emt 0:00:05]} Bd7 {[%emt 0:16:20]} 13. Ng3 {[%emt 0:00:12]} h5 {[%emt 0:00:06]} 14. gxh5 {[%emt 0:00:24]} Nxh5 {[%emt 0:00:02]} 15. Nxh5 {[%emt 0:00:13]} Qh4+ {[%emt 0:00:55]} 16. Qf2 {[%emt 0:00:08]} Qxh5 {[%emt 0:00:11]} 17. Bxc5 {[%emt 0:00:09]} dxc5 {[%emt 0:00:01]} 18. O-O-O $1 {[%emt 0:00:13]} f5 {[%emt 0:07:27] [#] ...fxe4 is the strong threat.} 19. Qg2 {[%emt 0:00:28]} ({Stronger than} 19. Qxc5 Rac8 (19... Qxf3 20. Be2 $14) 20. Qd6 Ba4 $17 (20... Qxf3 21. Qxd7 Qxh1 22. Bc4 $17)) (19. Qg3 $1 $16) 19... fxe4 $1 $11 {[%emt 0:06:59]} 20. fxe4 {[%emt 0:00:07]} Bh6+ {[%emt 0:01:21]} (20... Qf3 $1 $14) 21. Kb1 $16 {[%emt 0:01:02]} Be3 {[%emt 0:00:30] [#] Against Qg1} 22. Be2 $1 {[%emt 0:06:15]} Qh6 {[%emt 0:00:35]} 23. Bg4 $36 {[%emt 0:07:01][%mdl 2048] Black is under strong pressure.} Rf2 {[%emt 0:01:12] This move loses the game for Black.} (23... Rad8 $16) 24. Qg3 $18 {[%emt 0:00:25]} Bxg4 {[%emt 0:03:25]} (24... Be8 25. Rhe1 (25. Qxe5 Bd4 $16) 25... Bd4 26. Rxd4 cxd4 27. Qxf2 dxc3 28. bxc3 g5) 25. hxg4 {[%emt 0:01:49]} ({Inferior is} 25. Qxg4 Raf8 $11) 25... Qg5 {[%emt 0:20:26]} 26. Qh3 {[%emt 0:00:07] White threatens Qh8+ and mate.} Kf7 {[%emt 0:00:05][%cal Bg8f7,Bf7f6,Bf6e6][%mdl 32]} 27. Qh7+ {[%emt 0:00:15] White mates.} Kf6 {[%emt 0:00:01]} 28. d6 {[%emt 0:01:34][%csl Gd6][%cal Rh7e7]} Ke6 {[%emt 0:00:02] [#]} 29. Rh6 $3 {[%emt 0:01:29][%mdl 512] Weighted Error Value: White=0.05 (flawless) /Black=0.53.  Mistake:       	White=1     	Black=3      Inaccurate:     	---       	Black=1      OK:         	White=4     	Black=5      Best:        	White=3     	Black=1      Strong:       	White=2     	Black=2} 1-0

[Event "Serbian-ch Semifinal 2024"]
[Site "Paracin"]
[Date "2024.02.06"]
[Round "3.4"]
[White "Atalik, Suat"]
[Black "Bryakin, Mikhail"]
[Result "1/2-1/2"]
[ECO "D10"]
[WhiteElo "2439"]
[BlackElo "2479"]
[Annotator "TA"]
[PlyCount "36"]
[EventDate "2024.02.04"]
[EventType "swiss"]
[EventCountry "SRB"]
[SourceTitle "playchess.com"]
[Source "ChessBase"]
[SourceQuality "1"]
[TimeControl "40/5400+30:1800+30"]

{[%evp 9,36,0,12,8,5,5,44,45,30,22,22,0,43,41,64,77,72,43,45,43,69,21,24,-18,42,37,43,-7,52]} 1. d4 {[%emt 0:00:03]} d5 {[%emt 0:06:32]} 2. c4 {[%emt 0:00:15]} c6 {[%emt 0:00:08]} 3. e3 {[%emt 0:00:46]} Bf5 {[%emt 0:00:30]} 4. Nc3 {[%emt 0:00:17]} e6 {[%emt 0:00:35]} 5. f3 {[%emt 0:00:26]} Nf6 {[%emt 0:01:36]} 6. g4 {[%emt 0:01:28][%cal Bg2g4,Bg4g5][%mdl 32]} Bg6 {[%emt 0:00:30]} 7. h4 {[%emt 0:01:06] [#] Black must now prevent h5.} h5 {[%emt 0:02:35]} 8. g5 {[%emt 0:00:19] White is slightly better.} Ng8 {[%emt 0:00:59]} 9. Nge2 {[%emt 0:04:33]} Bd6 $1 {[%emt 0:02:27]} 10. Qb3 {[%emt 0:06:44]} b6 {[%emt 0:03:46]} 11. cxd5 {[%emt 0:04:52]} exd5 {[%emt 0:03:06]} 12. e4 {[%emt 0:01:41]} Ne7 {[%emt 0:03:09]} 13. Bg2 {[%emt 0:03:56]} ({Don't play} 13. exd5 $6 O-O $15) (13. Nf4 $5) 13... O-O {[%emt 0:01:40]} 14. O-O {[%emt 0:01:04]} b5 {[%emt 0:25:52]} 15. Be3 {[%emt 0:05:59]} (15. e5 $14 {deserves consideration.} Bc7 16. Ng3) 15... a5 $11 {[%emt 0:01:28]} 16. a3 {[%emt 1:05:01]} Na6 {[%emt 0:01:15]} (16... Nd7 $11) 17. Qd1 $14 {[%emt 0:00:00]} Qd7 {[%emt 0:06:56]} 18. Qd2 {[%emt 0:00:00]} (18. e5 $14 Bb8 19. Ng3) 18... Rad8 {[%emt 0:12:15] Weighted Error Value: White=0.17 (very precise) /Black=0.19 (very precise) .  Mistake:       	White=2     	Black=2      Inaccurate:     	White=2     	Black=3      OK:         	White=5     	Black=4      Strong:       	---       	Black=1} (18... Bc7 $11) 1/2-1/2

[Event "Serbian-ch Semifinal 2024"]
[Site "Paracin"]
[Date "2024.02.06"]
[Round "3.5"]
[White "Nestorovic, Nikola"]
[Black "Tadic, Stefan"]
[Result "1/2-1/2"]
[ECO "C55"]
[WhiteElo "2465"]
[BlackElo "2390"]
[Annotator "TA"]
[PlyCount "152"]
[EventDate "2024.02.04"]
[EventType "swiss"]
[EventCountry "SRB"]
[SourceTitle "playchess.com"]
[Source "ChessBase"]
[SourceQuality "1"]
[TimeControl "40/5400+30:1800+30"]

{[%evp 66,152,125,91,112,88,112,115,116,111,117,110,110,109,112,112,136,119,143,143,190,190,200,164,208,208,201,202,188,193,193,196,208,207,206,177,208,208,222,208,437,433,570,412,605,570,594,579,610,572,582,556,658,539,639,641,615,567,696,640,626,647,622,638,609,605,585,450,529,472,418,282,257,144,139,54,54,0,0,0,0,0,0,0,0,0,0,-8,8]} 1. e4 {[%emt 0:00:03]} e5 {[%emt 0:00:11]} 2. Nf3 {[%emt 0:00:06]} Nc6 {[%emt 0:00:08]} 3. Bc4 {[%emt 0:00:07]} Nf6 {[%emt 0:00:15]} 4. d3 {[%emt 0:00:19]} Be7 {[%emt 0:00:16]} 5. Nc3 {[%emt 0:01:21]} O-O {[%emt 0:01:12]} 6. O-O {[%emt 0:00:43]} d6 {[%emt 0:00:42]} 7. a4 {[%emt 0:00:10]} Be6 {[%emt 0:04:50]} 8. Nd5 {[%emt 0:00:16]} Bxd5 {[%emt 0:03:36]} 9. exd5 {[%emt 0:00:07]} Nb4 {[%emt 0:02:40]} 10. d4 {[%emt 0:00:16]} e4 {[%emt 0:02:54]} 11. Nd2 {[%emt 0:00:30]} Nbxd5 {[%emt 0:01:16]} 12. Nxe4 {[%emt 0:02:44]} c6 {[%emt 0:01:22]} 13. Ng3 {[%emt 0:05:39]} Re8 {[%emt 0:07:36]} 14. a5 {[%emt 0:15:15]} Qd7 {[%emt 0:02:58]} 15. Qf3 {[%emt 0:08:38]} Qg4 {[%emt 0:12:01]} 16. Qxg4 {[%emt 0:02:01]} Nxg4 {[%emt 0:00:26]} 17. Bxd5 {[%emt 0:00:53]} cxd5 {[%emt 0:00:02]} 18. f3 {[%emt 0:13:20]} Nf6 {[%emt 0:00:46]} 19. Nf5 {[%emt 0:04:42]} g6 {[%emt 0:11:12]} 20. Ne3 {[%emt 0:03:28]} Bf8 {[%emt 0:04:30]} 21. Kf2 {[%emt 0:00:21]} Re6 {[%emt 0:02:19]} 22. Re1 {[%emt 0:05:56]} Bg7 {[%emt 0:05:30]} 23. c3 {[%emt 0:00:11]} Rae8 {[%emt 0:00:04]} 24. Nc2 {[%emt 0:00:29]} Rxe1 {[%emt 0:04:05]} 25. Nxe1 {[%emt 0:00:05]} Rc8 {[%emt 0:01:48]} 26. Nd3 {[%emt 0:01:14]} Ne8 {[%emt 0:00:03]} 27. Nb4 {[%emt 0:06:14]} Nc7 {[%emt 0:00:08]} 28. Bf4 {[%emt 0:00:14]} Bf8 {[%emt 0:00:57]} 29. g4 {[%emt 0:10:57]} f6 {[%emt 0:00:46]} 30. h4 {[%emt 0:00:12]} Kf7 {[%emt 0:07:14]} 31. h5 {[%emt 0:06:08]} Re8 {[%emt 0:03:52]} 32. hxg6+ {[%emt 0:04:28]} hxg6 {[%emt 0:00:10]} 33. Rh1 {[%emt 0:01:14]} Kg8 {[%emt 0:00:46]} 34. Nd3 {[%emt 0:02:25]} Ne6 {[%emt 0:03:30]} 35. Bd2 {[%emt 0:04:15]} Rd8 {[%emt 0:02:38]} 36. f4 {[%emt 0:01:50]} Nc7 {[%emt 0:00:12]} 37. f5 {[%emt 0:00:17]} g5 {[%emt 0:00:30]} 38. Kf3 {[%emt 0:00:45]} a6 {[%emt 0:02:15]} 39. Ra1 {[%emt 0:01:11]} Rd7 {[%emt 0:01:13]} 40. Be1 {[%emt 0:00:22]} Be7 {[%emt 0:01:27]} 41. Bg3 {[%emt 0:30:12]} Bd8 {[%emt 0:30:22]} 42. Nb4 {[%emt 0:00:00]} Kg7 {[%emt 0:00:00]} (42... Kf7 $16 43. Nc2 Be7) 43. Nc2 $18 {[%emt 0:00:00]} (43. Rh1 Be7 44. Re1 Bf8 $16) 43... Kf7 {[%emt 0:00:00]} 44. Ne3 {[%emt 0:00:00]} Kg7 {[%emt 0:00:00]} 45. Ra4 {[%emt 0:00:00]} Kf7 {[%emt 0:00:00]} 46. Rb4 {[%emt 0:00:00]} Nb5 {[%emt 0:00:00]} 47. Nxd5 {[%emt 0:00:00]} Bxa5 {[%emt 0:00:00]} 48. Ra4 {[%emt 0:00:00]} Bd8 {[%emt 0:00:00]} 49. Ra1 {[%emt 0:00:00]} Be7 {[%emt 0:00:00]} 50. Re1 {[%emt 0:00:00]} Nc7 {[%emt 0:00:00]} 51. Ke4 {[%emt 0:00:00]} Bf8 {[%emt 0:00:00]} 52. c4 {[%emt 0:00:00]} Na8 $2 {[%emt 0:00:11]} (52... Ne8 53. b4 Bh6) 53. b4 $18 {[%emt 0:00:00]} b6 {[%emt 0:00:31]} 54. Kd3 {[%emt 0:00:00]} Nc7 {[%emt 0:00:21]} (54... b5 $142 55. cxb5 axb5) 55. Nxb6 $18 {[%emt 0:00:00]} Rd8 {[%emt 0:00:05]} 56. d5 {[%emt 0:00:00]} Rb8 {[%emt 0:00:27]} 57. Bf2 {[%emt 0:00:00]} Be7 {[%emt 0:02:04]} 58. Rh1 {[%emt 0:00:00]} Bf8 {[%emt 0:00:41]} 59. Bd4 {[%emt 0:00:30]} Bg7 {[%emt 0:00:47]} 60. Be3 {[%emt 0:01:02]} Bf8 {[%emt 0:01:01]} 61. c5 {[%emt 0:01:48]} Kg7 {[%emt 0:00:47]} 62. Bd4 {[%emt 0:03:18]} Re8 {[%emt 0:02:37]} 63. c6 {[%emt 0:01:42]} Be7 {[%emt 0:01:08]} 64. Re1 {[%emt 0:02:16]} Kf7 {[%emt 0:00:01]} 65. Kc4 {[%emt 0:01:12]} Rh8 {[%emt 0:01:44]} 66. Re4 {[%emt 0:00:04]} Rh1 {[%emt 0:00:57]} 67. Nc8 {[%emt 0:00:48]} Rc1+ {[%emt 0:00:32]} 68. Kb3 {[%emt 0:01:13]} Nxd5 {[%emt 0:00:13]} 69. Nxe7 {[%emt 0:00:04]} (69. Na7 $18) 69... Nxe7 $16 {[%emt 0:00:10] [#]} 70. Re6 {[%emt 0:00:28]} (70. c7 $1 $16 {Threatens to win with Bc3.} Nd5 (70... Rxc7 $2 {too greedy.} 71. Re6 $18) 71. Re6 Nxc7 72. Rxd6 (72. Rxf6+ Ke7 $16)) 70... Nxc6 $14 {[%emt 0:01:44]} 71. Rxf6+ {[%emt 0:00:14]} ({Of course not} 71. Bxf6 Rb1+ 72. Ka3 Rd1 $11) (71. Bb2 $14 Rf1 72. Rxd6 (72. Rxf6+ Ke7 $14) 72... Rf3+ 73. Ka4) 71... Ke7 $11 {[%emt 0:00:23]} 72. Re6+ {[%emt 0:00:11]} Kd7 {[%emt 0:00:01]} 73. Bc3 {[%emt 0:01:11]} Rg1 {[%emt 0:00:20]} 74. Rg6 {[%emt 0:00:08]} Rxg4 {[%emt 0:00:05]} 75. Rg7+ {[%emt 0:00:06]} Ke8 {[%emt 0:00:26]} 76. f6 {[%emt 0:00:05]} Ne5 {[%emt 0:04:00]} 1/2-1/2

[Event "Serbian-ch Semifinal 2024"]
[Site "Paracin"]
[Date "2024.02.06"]
[Round "3.6"]
[White "Kovacevic, Aleksandar"]
[Black "Arsovic, Zoran"]
[Result "1/2-1/2"]
[ECO "B67"]
[WhiteElo "2453"]
[BlackElo "2362"]
[Annotator "TA"]
[PlyCount "50"]
[EventDate "2024.02.04"]
[EventType "swiss"]
[EventCountry "SRB"]
[SourceTitle "playchess.com"]
[Source "ChessBase"]
[SourceQuality "1"]
[TimeControl "40/5400+30:1800+30"]

{[%evp 18,50,35,30,27,18,11,12,16,3,8,0,9,7,42,38,37,33,33,16,25,20,26,39,17,16,24,0,0,0,0,0,0,0,6]} 1. e4 {[%emt 0:00:15]} c5 {[%emt 0:00:18]} 2. Nf3 {[%emt 0:00:13]} d6 {[%emt 0:00:35]} 3. d4 {[%emt 0:00:47]} cxd4 {[%emt 0:00:17]} 4. Nxd4 {[%emt 0:00:05]} Nf6 {[%emt 0:00:27]} 5. Nc3 {[%emt 0:00:10]} Nc6 {[%emt 0:00:45]} 6. Bg5 {[%emt 0:00:20]} e6 {[%emt 0:03:28]} 7. Qd2 {[%emt 0:00:19]} a6 {[%emt 0:00:25]} 8. O-O-O {[%emt 0:00:19]} Bd7 {[%emt 0:00:37]} 9. f3 {[%emt 0:00:45]} Nxd4 {[%emt 0:03:32]} 10. Qxd4 {[%emt 0:00:06]} h6 {[%emt 0:00:26]} 11. Be3 {[%emt 0:00:53]} Bc6 {[%emt 0:02:28]} 12. h4 {[%emt 0:13:01]} d5 {[%emt 0:12:57] Dodges Bc4} 13. e5 {[%emt 0:03:24]} Nd7 {[%emt 0:00:21]} 14. f4 {[%emt 0:00:28]} g6 {[%emt 0:09:33]} 15. Be2 {[%emt 0:15:56]} Qc7 {[%emt 0:10:45]} 16. Bf3 {[%emt 0:01:26]} h5 {[%emt 0:00:38]} 17. Kb1 {[%emt 0:05:16][%cal Rc3d5]} O-O-O {[%emt 0:02:39]} 18. Ne2 {[%emt 0:06:19]} Bb5 {[%emt 0:09:32]} 19. Qd2 {[%emt 0:00:45]} Nb6 {[%emt 0:02:34]} 20. b3 {[%emt 0:00:48][%cal Oc2c4] Threatens to win with c4!} Bxe2 {[%emt 0:00:34]} 21. Qxe2 {[%emt 0:07:08] [#] Qf2 would now be deadly.} Bc5 $1 {[%emt 0:00:56]} 22. Rd3 {[%emt 0:05:45]} Kb8 {[%emt 0:07:30] The position is equal.} 23. Rhd1 {[%emt 0:07:28] And now Rc3 would win.} Bxe3 {[%emt 0:03:10]} 24. Qxe3 {[%emt 0:00:09] Hoping for Rc3.} Rc8 {[%emt 0:00:29]} 25. R1d2 {[%emt 0:04:52] Active counter play!} Qc5 {[%emt 0:00:36] Weighted Error Value: White=0.05 (flawless) /Black=0.02 (flawless) .  Inaccurate:     	---       	Black=1      OK:         	White=4     	Black=10     Strong:       	---       	Black=1} 1/2-1/2

[Event "Serbian-ch Semifinal 2024"]
[Site "Paracin"]
[Date "2024.02.06"]
[Round "3.7"]
[White "Injac, Teodora"]
[Black "Djordjevic, Vuk"]
[Result "0-1"]
[ECO "E49"]
[WhiteElo "2439"]
[BlackElo "2367"]
[Annotator "TA"]
[PlyCount "62"]
[EventDate "2024.02.04"]
[EventType "swiss"]
[EventCountry "SRB"]
[SourceTitle "playchess.com"]
[Source "ChessBase"]
[SourceQuality "1"]
[TimeControl "40/5400+30:1800+30"]

{[%evp 14,62,0,7,73,24,48,34,68,34,50,39,52,46,60,54,109,0,0,29,31,0,0,0,6,0,16,20,25,13,31,0,47,28,36,0,14,0,9,-45,0,-77,-82,-80,-79,-92,-9,-197,-25,-693,-642]} 1. d4 {[%emt 0:00:05]} Nf6 {[%emt 0:01:58]} 2. c4 {[%emt 0:00:04]} e6 {[%emt 0:00:31]} 3. Nc3 {[%emt 0:00:20]} Bb4 {[%emt 0:00:15]} 4. e3 {[%emt 0:00:08]} O-O {[%emt 0:00:51]} 5. Bd3 {[%emt 0:00:47]} d5 {[%emt 0:01:28]} 6. a3 {[%emt 0:00:13]} Bxc3+ {[%emt 0:01:05]} 7. bxc3 {[%emt 0:00:02]} c5 {[%emt 0:00:39]} 8. cxd5 {[%emt 0:00:57]} Nxd5 {[%emt 0:04:21]} (8... exd5 $11 9. Ne2 b6) 9. Ne2 {[%emt 0:03:32]} (9. dxc5 Nd7 $15 (9... Nxc3 10. Qc2 $16)) ({White should try} 9. Nf3 $16) 9... Nc6 $11 {[%emt 0:17:20]} 10. O-O {[%emt 0:02:51]} Nde7 {[%emt 0:06:17] White is slightly better.} 11. c4 {[%emt 0:12:07]} Ng6 {[%emt 0:21:32]} 12. Bb2 {[%emt 0:02:17]} b6 {[%emt 0:04:45]} 13. Qc2 {[%emt 0:11:11]} Bb7 {[%emt 0:01:59]} 14. dxc5 {[%emt 0:04:01]} Qg5 {[%emt 0:15:09] [#]} ({Better is} 14... bxc5 $14 15. Rab1 Qe7) 15. Ng3 {[%emt 0:01:24]} (15. Qc3 $1 $16 {[%csl Gb2][%cal Rc3g7]} Nh4 16. Ng3) 15... Qxc5 {[%emt 0:02:14]} 16. Qc3 {[%emt 0:06:54][%csl Gb2][%cal Rc3g7]} f6 {[%emt 0:02:24]} 17. Ne4 {[%emt 0:04:13]} Qe7 {[%emt 0:02:07]} 18. Bc2 {[%emt 0:07:46]} Nce5 {[%emt 0:07:07]} 19. f4 {[%emt 0:04:37]} Nf7 {[%emt 0:00:50]} 20. a4 {[%emt 0:08:46]} Rfd8 {[%emt 0:04:19]} 21. Ba3 {[%emt 0:04:26] A strong pair of Bishops.} Qc7 {[%emt 0:02:15]} 22. Rf2 {[%emt 0:02:02][%cal Oe4f6]} Nh6 {[%emt 0:01:31]} (22... Bxe4 $11 23. Bxe4 Rac8) 23. h3 {[%emt 0:04:40]} Rac8 {[%emt 0:00:09][%cal Ob7e4]} 24. Nd2 {[%emt 0:13:09]} Nf5 {[%emt 0:00:25]} 25. Rc1 {[%emt 0:00:31][%cal Oc4c5]} (25. a5 {simplifies} bxa5 26. Nb3 Qxc4 27. Qxc4 Rxc4 28. Nxa5 Rc7 29. Nxb7 Rxb7 30. Bc5) 25... Ngh4 {[%emt 0:00:51]} 26. Bb1 {[%emt 0:02:15]} (26. a5 $11) 26... Qd7 {[%emt 0:00:30]} 27. Ne4 {[%emt 0:02:27]} (27. e4 $11 Nd4 28. Nb3) 27... Bxe4 $17 {[%emt 0:00:35]} 28. Bxe4 {[%emt 0:00:03]} Qxa4 {[%emt 0:00:24]} 29. Kh2 {[%emt 0:02:30] [#]} b5 {[%emt 0:00:22] Black is more active.} (29... Nd6 $1 $17 {[%cal Rd6e4]} 30. Bxd6 Rxd6) 30. Qb2 $2 {[%emt 0:00:36]} (30. Bc2 $1 $11 Qa6 (30... Qxc4 31. Qe1 $14) 31. c5) 30... Nxe3 $2 {[%emt 0:00:38]} ({Resist} 30... bxc4 31. Rc3 $17) ({Black should play} 30... Rxc4 $19 31. Bc2 Qa6) 31. cxb5 $2 {[%emt 0:00:34][%mdl 8192]} Qxe4 {[%emt 0:00:23] Weighted Error Value: White=0.47/Black=0.26 (precise) .  Loses game:     	White=2     	---        Missed win:     	---       	Black=1      Mistake:       	White=4     	Black=3      Inaccurate:     	White=3     	Black=2      OK:         	White=6     	Black=12     Best:        	---       	Black=1} 0-1